bitfinex/quotes_ETHUSD_20250916
["timestamp","ask_amount","ask_price","bid_price","bid_amount"]
[1757993969518,9.14161253,4534.9,4534.8,1.2966]
[1757993969721,6.93549225,4534.9,4534.8,1.2966]
[1757993969927,6.8116,4534.9,4534.8,1.2966]
[1757993970531,6.8126,4534.9,4534.8,1.2966]
[1757993970821,3.0,4534.9,4534.8,1.42626]
[1757993971859,3.002,4534.9,4534.8,1.42626]
[1757993973219,3.002,4534.9,4534.8,1.2966]
[1757993973457,2.994,4534.9,4534.8,1.2966]
[1757993973761,2.99069229,4534.9,4534.8,1.2966]
[1757993974909,2.99069229,4534.9,4534.8,15.7966]
[1757993975113,5.19581257,4534.9,4534.8,15.3464]
[1757993975293,5.19581257,4534.9,4534.8,14.581]
[1757993975695,5.19581257,4534.9,4534.8,0.081]
[1757993975913,2.99069229,4534.9,4534.8,0.8464]
[1757993976119,6.80129229,4534.9,4534.8,1.2966]
[1757993977121,3.10029229,4534.9,4534.8,1.2966]
[1757993979842,5.30541257,4534.9,4534.8,0.8464]
[1757993980211,3.10029229,4534.9,4534.8,0.8464]
[1757993980633,3.10029229,4534.9,4534.8,1.2966]
[1757993985722,2.99069229,4534.9,4534.8,1.2966]
[1757993985928,0.002,4534.9,4534.8,3.50176891]
[1757993986121,0.002,4534.9,4534.8,3.86511102]
[1757993987328,0.002,4534.9,4534.8,1.65994211]
[1757993987526,0.002,4534.9,4534.8,15.7966]
[1757993987927,0.002,4534.9,4534.8,18.00176891]
[1757993988134,0.002,4534.9,4534.8,15.7966]
[1757993991169,0.002,4534.9,4534.8,18.00176891]
[1757993991533,0.002,4534.9,4534.8,18.11136891]
[1757993991734,0.002,4534.9,4534.8,23.94752074]
[1757993997269,0.002,4534.9,4534.8,15.456]
[1757993997481,0.002,4534.9,4534.8,15.1412]
[1757993997688,0.002,4534.9,4534.8,15.455]
[1757993998486,0.002,4534.9,4534.8,18.11106891]
[1757993999561,0.002,4534.9,4534.8,15.9059]
[1757994000399,0.002,4534.9,4534.8,18.11106891]
[1757994001284,0.002,4534.9,4534.8,19.89358597]
[1757994004501,0.002,4534.9,4534.8,17.68841706]
[1757994004786,0.002,4534.9,4534.8,19.89358597]
[1757994005205,0.002,4534.9,4534.8,17.68841706]
[1757994005375,0.002,4534.9,4534.8,15.1412]
[1757994005907,0.002,4534.9,4534.8,17.34636891]
[1757994006076,0.002,4534.9,4534.8,17.66016891]
[1757994006405,0.002,4534.9,4534.8,0.6412]
[1757994006707,0.002,4534.9,4534.8,0.1906]
[1757994007389,0.002,4534.9,4534.8,0.6642]
[1757994008189,0.002,4534.9,4534.8,2.86936891]
[1757994008390,0.002,4534.9,4534.8,18.13406891]
[1757994008587,0.002,4534.9,4534.8,15.9289]
[1757994008789,0.002,4534.9,4534.8,18.13406891]
[1757994010206,0.002,4534.9,4534.8,15.9289]
[1757994011382,0.002,4534.9,4534.8,18.13406891]
[1757994011730,0.002,4534.9,4534.8,15.9289]
[1757994011883,0.002,4534.9,4534.8,18.13406891]
[1757994013408,0.002,4534.9,4534.8,20.27322074]
[1757994022444,0.002,4534.9,4534.8,21.06522074]
[1757994041185,0.002,4534.9,4534.8,20.95562074]
[1757994041812,0.002,4534.9,4534.8,21.04399851]
[1757994042014,0.157,4534.9,4534.8,16.8085296]
[1757994042189,0.991,4534.9,4534.8,0.081]
[1757994042506,1.148,4534.9,4534.8,0.081]
[1757994042707,1.148,4534.9,4534.8,0.10305168]
[1757994042909,0.991,4534.9,4534.8,0.081]
[1757994043688,3.19612028,4534.9,4534.8,0.081]
[1757994044083,0.991,4534.9,4534.8,0.081]
[1757994049941,0.157,4534.9,4534.8,0.081]
[1757994050427,0.5486,4534.9,4534.8,0.081]
[1757994050619,0.157,4534.9,4534.8,0.081]
[1757994060242,0.002,4534.9,4534.8,3.07882059]
[1757994060442,0.002,4534.9,4534.8,3.62066891]
[1757994060615,0.002,4534.9,4534.8,5.78187242]
[1757994060822,0.002,4534.9,4534.8,5.75982074]
[1757994061046,0.002,4534.9,4534.8,5.30552074]
[1757994061246,0.1539,4534.9,4534.8,4.53492074]
[1757994061409,0.1539,4534.9,4534.8,0.1906]
[1757994062147,0.1539,4534.9,4534.8,14.6906]
[1757994062445,0.1539,4534.9,4534.8,16.89576891]
[1757994063050,0.002,4534.9,4534.8,15.1718]
[1757994063350,0.002,4534.9,4534.8,18.268]
[1757994063351,0.5484,4534.9,4534.8,18.268]
[1757994063537,0.9909,4534.9,4534.8,18.268]
[1757994063740,0.9909,4534.9,4534.8,3.768]
[1757994064647,0.1568,4534.9,4534.8,3.768]
[1757994065356,0.002,4534.9,4534.8,4.2492]
[1757994065713,0.002,4534.9,4534.8,6.47642059]
[1757994065915,0.002,4534.9,4534.8,6.45436891]
[1757994066122,0.002,4534.9,4534.8,6.74376891]
[1757994066356,0.002,4534.9,4534.8,4.2492]
[1757994066559,0.3111,4534.9,4534.8,3.768]
[1757994067247,0.3111,4534.9,4534.8,3.79005168]
[1757994068268,0.3111,4534.9,4534.8,3.768]
[1757994068442,0.7027,4534.9,4534.8,18.268]
[1757994068754,0.9925,4534.9,4534.8,3.768]
[1757994070147,0.3111,4534.9,4534.8,3.768]
[1757994070972,0.3111,4534.9,4534.8,0.081]
[1757994077676,2.51622028,4534.9,4534.8,0.081]
[1757994077876,3.19762028,4534.9,4534.8,0.081]
[1757994078283,0.9925,4534.9,4534.8,0.081]
[1757994078630,0.3111,4534.9,4534.8,0.081]
[1757994081077,0.002,4534.9,4534.8,0.5592]
[1757994081667,0.002,4534.9,4534.8,0.88085168]
[1757994081984,0.002,4534.9,4534.8,1.34225168]
[1757994084109,0.002,4534.9,4534.8,3.54742059]
[1757994084262,0.002,4534.9,4534.8,9.93555121]
[1757994084461,0.002,4534.9,4534.8,10.02309953]
[1757994084881,0.002,4534.9,4534.8,24.52309953]
[1757994087366,0.002,4534.9,4534.8,20.27412074]
[1757994092300,0.002,4534.9,4534.8,15.1688]
[1757994092502,0.1525,4534.9,4534.8,0.1906]
[1757994092811,0.1525,4534.9,4534.8,3.8766]
[1757994093603,0.002,4534.9,4534.8,6.08176891]
[1757994093798,0.002,4534.9,4534.8,6.55996891]
[1757994094044,0.002,4534.9,4534.8,4.3548]
[1757994095327,0.002,4534.9,4534.8,6.55996891]
[1757994095743,0.002,4534.9,4534.8,4.3548]
[1757994096527,0.002,4534.9,4534.8,18.8548]
[1757994099073,0.002,4534.9,4534.8,21.05996891]
[1757994099779,0.002,4534.9,4534.8,18.8548]
[1757994100134,0.002,4534.9,4534.8,21.05996891]
[1757994101768,0.002,4534.9,4534.8,21.35956891]
[1757994102132,0.002,4534.9,4534.8,21.82096891]
[1757994102873,0.002,4534.9,4534.8,19.1544]
[1757994103075,0.002,4534.9,4534.8,18.8548]
[1757994103480,0.002,4534.9,4534.8,21.05996891]
[1757994104065,0.002,4534.9,4534.8,18.8548]
[1757994104381,0.002,4534.9,4534.8,21.05996891]
[1757994106284,0.002,4534.9,4534.8,21.82096891]
[1757994107084,0.002,4534.9,4534.8,19.1544]
[1757994107450,0.002,4534.9,4534.8,21.35956891]
[1757994108891,0.002,4534.9,4534.8,21.82096891]
[1757994110515,0.002,4534.9,4534.8,5.1158]
[1757994110986,0.002,4534.9,4534.8,19.6158]
[1757994111181,0.002,4534.9,4534.8,21.35956891]
[1757994111410,0.002,4534.9,4534.8,21.81916891]
[1757994113315,0.002,4534.9,4534.8,21.35956891]
[1757994114019,0.002,4534.9,4534.8,21.81916891]
[1757994116518,0.002,4534.9,4534.8,18.8548]
[1757994116875,0.002,4534.9,4534.8,21.05996891]
[1757994117104,0.002,4534.9,4534.8,18.8548]
[1757994117424,0.002,4534.9,4534.8,21.05996891]
[1757994117594,0.002,4534.9,4534.8,18.8548]
[1757994118425,0.002,4534.9,4534.8,21.05996891]
[1757994119320,0.002,4534.9,4534.8,18.8548]
[1757994119784,0.1688,4534.9,4534.8,18.3766]
[1757994120224,0.1688,4534.9,4534.8,3.8766]
[1757994121657,0.002,4534.9,4534.8,4.3296]
[1757994121987,0.1688,4534.9,4534.8,3.8766]
[1757994123559,0.1688,4534.9,4534.8,0.1906]
[1757994123827,0.1688,4534.9,4534.8,3.766]
[1757994127063,0.002,4534.9,4534.8,4.9575]
[1757994127452,0.002,4534.9,4534.8,5.0671]
[1757994127646,0.002,4534.9,4534.8,7.27226891]
[1757994129348,0.002,4534.9,4534.8,5.0671]
[1757994129548,0.002,4534.9,4534.8,4.6261]
[1757994129754,0.002,4534.9,4534.8,4.3286]
[1757994130349,0.2876,4534.9,4534.8,3.766]
[1757994131264,0.002,4534.9,4534.8,3.766]
[1757994131462,0.002,4534.9,4534.8,4.219]
[1757994131963,0.002,4534.9,4534.8,4.9575]
[1757994132538,0.002,4534.9,4534.8,4.5165]
[1757994132743,0.002,4534.9,4534.8,4.9575]
[1757994133377,0.002,4534.9,4534.8,7.16266891]
[1757994133683,0.002,4534.9,4534.8,7.27226891]
[1757994134076,0.002,4534.9,4534.8,21.77226891]
[1757994137191,0.002,4534.9,4534.8,7.27226891]
[1757994137495,0.002,4534.9,4534.8,21.77226891]
[1757994138352,0.002,4534.9,4534.8,19.5671]
[1757994138570,0.002,4534.9,4534.8,18.8286]
[1757994139392,0.002,4534.9,4534.8,18.3756]
[1757994139588,0.1688,4534.9,4534.8,18.3756]
[1757994140673,0.1688,4534.9,4534.8,18.8395]
[1757994140872,0.002,4534.9,4534.8,18.8395]
[1757994142116,0.002,4534.9,4534.8,19.1463]
[1757994142323,0.002,4534.9,4534.8,19.609]
[1757994143980,0.2881,4534.9,4534.8,18.3756]
[1757994144503,0.002,4534.9,4534.8,18.3756]
[1757994144677,0.002,4534.9,4534.8,18.8395]
[1757994145096,0.002,4534.9,4534.8,19.1463]
[1757994145291,0.002,4534.9,4534.8,19.609]
[1757994145915,0.002,4534.9,4534.8,21.81416891]
[1757994146724,0.002,4534.9,4534.8,19.609]
[1757994147012,0.002,4534.9,4534.8,21.81416891]
[1757994148738,0.002,4534.9,4534.8,18.8395]
[1757994150416,0.002,4534.9,4534.8,21.04466891]
[1757994151139,0.002,4534.9,4534.8,18.8395]
[1757994151943,0.002,4534.9,4534.8,18.3756]
[1757994155034,0.002,4534.9,4534.8,21.35146891]
[1757994155233,0.002,4534.9,4534.8,21.81416891]
[1757994156260,0.002,4534.9,4534.8,19.609]
[1757994157157,0.002,4534.9,4534.8,18.8395]
[1757994159175,0.002,4534.9,4534.8,18.3756]
[1757994159328,0.1645,4534.9,4534.8,18.3756]
[1757994162152,0.82750907,4534.9,4534.8,3.8756]
[1757994162566,0.82750907,4534.9,4534.8,18.3756]
[1757994163077,0.66500907,4534.9,4534.8,21.81416891]
[1757994163584,0.66500907,4534.9,4534.8,19.609]
[1757994163779,0.002,4534.9,4534.8,19.609]
[1757994164179,0.002,4534.9,4534.8,21.81416891]
[1757994167090,0.002,4534.9,4534.8,19.609]
[1757994167587,0.002,4534.9,4534.8,21.81416891]
[1757994170586,0.002,4534.9,4534.8,7.31416891]
[1757994170956,0.002,4534.9,4534.8,21.81416891]
[1757994172987,0.002,4534.9,4534.8,19.609]
[1757994173794,0.12621071,4534.9,4534.8,19.609]
[1757994175474,0.12621071,4534.9,4534.8,19.1463]
[1757994177082,0.12621071,4534.9,4534.8,21.79046891]
[1757994177289,0.12621071,4534.9,4534.8,19.5853]
[1757994179511,0.12621071,4534.9,4534.8,18.8395]
[1757994180218,0.12621071,4534.9,4534.8,21.04466891]
[1757994181207,0.12621071,4534.9,4534.8,21.33356891]
[1757994181510,0.12621071,4534.9,4534.8,21.77256891]
[1757994181710,0.12621071,4534.9,4534.8,19.5674]
[1757994182811,0.12621071,4534.9,4534.8,21.77256891]
[1757994185416,0.12621071,4534.9,4534.8,19.5674]
[1757994186702,0.12621071,4534.9,4534.8,21.77256891]
[1757994189536,0.12621071,4534.9,4534.8,18.8395]
[1757994189841,0.12621071,4534.9,4534.8,18.3756]
[1757994189842,0.41781071,4534.9,4534.8,18.3756]
[1757994193638,0.41781071,4534.9,4534.8,18.8684]
[1757994194041,0.12621071,4534.9,4534.8,21.80146891]
[1757994197426,0.12621071,4534.9,4534.8,18.8684]
[1757994197846,0.12621071,4534.9,4534.8,4.3684]
[1757994198232,0.12621071,4534.9,4534.8,18.3756]
[1757994199627,0.12621071,4534.9,4534.8,18.8684]
[1757994200425,0.12621071,4534.9,4534.8,18.3756]
[1757994202092,0.12621071,4534.9,4534.8,18.8619]
[1757994202688,0.42181071,4534.9,4534.8,18.3756]
[1757994202888,0.12621071,4534.9,4534.8,18.8619]
[1757994203070,0.12621071,4534.9,4534.8,21.83016891]
[1757994205392,0.12621071,4534.9,4534.8,19.625]
[1757994206191,0.12621071,4534.9,4534.8,21.83016891]
[1757994207360,0.12621071,4534.9,4534.8,19.625]
[1757994207663,0.12621071,4534.9,4534.8,21.83016891]
[1757994210715,0.12621071,4534.9,4534.8,19.1629]
[1757994211316,0.12621071,4534.9,4534.8,18.8619]
[1757994215221,0.12621071,4534.9,4534.8,21.06706891]
[1757994215401,0.12621071,4534.9,4534.8,18.8619]
[1757994220228,0.12621071,4534.9,4534.8,4.3619]
[1757994220945,0.12621071,4534.9,4534.8,18.8619]
[1757994225159,0.12621071,4534.9,4534.8,4.3619]
[1757994225549,0.12621071,4534.9,4534.8,18.8619]
[1757994228169,0.12621071,4534.9,4534.8,21.83016891]
[1757994228473,0.12621071,4534.9,4534.8,22.22461154]
[1757994229037,0.12621071,4534.9,4534.8,21.83016891]
[1757994229671,0.12621071,4534.9,4534.8,19.625]
[1757994235591,0.12621071,4534.9,4534.8,21.83016891]
[1757994236771,0.12621071,4534.9,4534.8,0.6745]
[1757994236981,0.12621071,4534.9,4534.8,0.1906]
[1757994237392,0.65361071,4534.9,4534.8,0.081]
[1757994237591,7.33546995,4534.9,4534.8,0.081]
[1757994239571,6.92139473,4534.9,4534.8,0.081]
[1757994239898,7.0039525,4534.9,4534.8,0.081]
[1757994240505,7.33478016,4534.9,4534.8,0.081]
[1757994243314,2.2053148,4534.5,4534.4,0.001]
[1757994243475,13.98466208,4534.5,4534.4,0.001]
[1757994243793,12.3107948,4534.5,4534.4,0.001]
[1757994243993,12.39923158,4534.5,4534.4,0.001]
[1757994244178,15.77374803,4534.5,4534.4,0.001]
[1757994244379,16.07804803,4534.5,4534.4,0.001]
[1757994244605,12.05005499,4534.5,4534.4,0.001]
[1757994244812,15.52128463,4534.5,4534.4,0.001]
[1757994245011,15.72774544,4534.5,4534.4,0.001]
[1757994245821,12.04974544,4534.5,4534.4,0.001]
[1757994246113,15.72774544,4534.5,4534.4,0.001]
[1757994246818,12.04974544,4534.5,4534.4,0.001]
[1757994247017,15.72774544,4534.5,4534.4,0.001]
[1757994248191,15.31451427,4534.5,4534.4,0.001]
[1757994249311,14.83746803,4534.5,4534.4,0.001]
[1757994249698,11.15946803,4534.5,4534.4,0.001]
[1757994250002,14.83746803,4534.5,4534.4,0.001]
[1757994252696,3.43434374,4534.5,4534.4,1.2344]
[1757994252894,3.08843678,4534.5,4534.4,1.2344]
[1757994254731,3.19803678,4534.5,4534.4,1.2344]
[1757994258020,0.19803678,4534.5,4534.4,1.2344]
[1757994258217,0.002,4534.9,4534.4,2.83199363]
[1757994258554,0.002,4534.9,4534.6,2.20526576]
[1757994258929,0.002,4534.9,4534.8,0.2974]
[1757994259450,0.002,4534.9,4534.8,1.2334]
[1757994263643,0.002,4534.9,4534.8,3.46062059]
[1757994264671,0.002,4534.9,4534.8,1.25545168]
[1757994265360,0.002,4534.9,4534.8,0.4521]
[1757994265768,0.002,4534.9,4534.8,0.7532]
[1757994266133,0.002,4534.9,4534.8,1.221]
[1757994266334,0.002,4534.9,4534.8,0.7532]
[1757994266540,0.2958,4534.9,4534.7,14.5]
[1757994266771,0.2958,4534.9,4534.4,3.678]
[1757994266968,5.10134728,4534.6,4534.4,0.001]
[1757994267566,0.2938,4534.5,4534.4,0.001]
[1757994268574,0.4521,4534.5,4534.4,0.4531]
[1757994271082,0.5868,4534.5,4534.4,0.001]
[1757994271452,2.7921148,4534.5,4534.4,0.001]
[1757994271672,6.1837148,4534.5,4534.4,0.001]
[1757994272978,5.7921148,4534.5,4534.4,0.001]
[1757994274189,5.91599933,4534.5,4534.4,0.001]
[1757994276874,6.02559933,4534.5,4534.4,0.001]
[1757994278714,6.87969933,4534.5,4534.4,0.001]
[1757994279381,6.02559933,4534.5,4534.4,0.001]
[1757994281820,10.27892107,4534.5,4534.4,0.001]
[1757994282135,9.82682107,4534.5,4534.4,0.001]
[1757994283721,9.82682107,4534.5,4534.4,0.4531]
[1757994284045,7.48680627,4534.5,4534.4,1.222]
[1757994285050,9.69212107,4534.5,4534.4,1.222]
[1757994285204,7.48680627,4534.5,4534.4,1.222]
[1757994285407,7.48680627,4534.5,4534.4,0.7542]
[1757994285803,9.69212107,4534.5,4534.4,0.7542]
[1757994286447,7.48680627,4534.5,4534.4,0.7542]
[1757994286838,9.69212107,4534.5,4534.4,0.7542]
[1757994287915,7.48680627,4534.5,4534.4,0.7542]
[1757994288116,7.48680627,4534.5,4534.4,1.222]
[1757994288548,9.69212107,4534.5,4534.4,1.222]
[1757994289449,9.69212107,4534.5,4534.4,0.7542]
[1757994289952,7.48680627,4534.5,4534.4,0.7542]
[1757994290255,7.48680627,4534.5,4534.4,1.1958]
[1757994291048,9.69212107,4534.5,4534.4,1.1958]
[1757994291454,7.48680627,4534.5,4534.4,1.1958]
[1757994291623,9.69212107,4534.5,4534.4,1.1958]
[1757994291952,9.69224545,4534.5,4534.4,0.7542]
[1757994295159,10.16882895,4534.5,4534.4,0.7542]
[1757994295335,10.37568292,4534.5,4534.4,0.7542]
[1757994295815,8.17036812,4534.5,4534.4,0.7542]
[1757994296234,8.37729754,4534.5,4534.4,1.2278]
[1757994296432,10.58261234,4534.5,4534.4,1.2278]
[1757994296837,10.58261234,4534.5,4534.4,0.7542]
[1757994297319,10.58261234,4534.5,4534.4,0.4531]
[1757994299239,8.37729754,4534.5,4534.4,0.4531]
[1757994299674,8.37735168,4534.5,4534.4,0.4531]
[1757994299876,8.37735168,4534.5,4534.4,1.2135]
[1757994300245,4.12402994,4534.5,4534.4,1.2135]
[1757994300446,4.12402994,4534.5,4534.4,0.7399]
[1757994300646,3.23360891,4534.5,4534.4,1.2135]
[1757994300843,0.12400891,4534.5,4534.4,1.2135]
[1757994301051,0.12600891,4534.8,4534.4,4.99447387]
[1757994301383,0.002,4534.8,4534.7,2.20521754]
[1757994301556,0.002,4534.8,4534.7,2.22726971]
[1757994301755,0.002,4534.8,4534.7,17.98356971]
[1757994301961,0.002,4534.8,4534.7,17.96151754]
[1757994304488,0.002,4534.8,4534.7,19.14117797]
[1757994305002,0.002,4534.8,4534.7,16.93596043]
[1757994305287,4.25532174,4534.8,4534.7,15.2827]
[1757994305584,4.80942174,4534.8,4534.4,0.001]
[1757994305878,6.45863654,4534.5,4534.4,0.001]
[1757994306102,9.58261295,4534.5,4534.4,0.001]
[1757994306399,9.74781295,4534.5,4534.4,0.001]
[1757994307905,10.43064836,4534.5,4534.4,0.001]
[1757994308609,9.74781295,4534.5,4534.4,0.001]
[1757994309697,7.37729815,4534.5,4534.4,0.7837]
[1757994310078,3.12397641,4534.5,4534.4,1.2573]
[1757994310319,3.0,4534.5,4534.4,1.2573]
[1757994310820,3.0,4534.5,4534.4,15.7573]
[1757994311117,0.002,4534.8,4534.4,17.13796289]
[1757994311321,0.002,4534.8,4534.5,0.9695]
[1757994312011,0.002,4534.8,4534.7,0.2868]
[1757994312498,0.002,4534.8,4534.7,1.2563]
[1757994316649,0.002,4534.8,4534.7,0.7827]
[1757994316650,4.25532174,4534.8,4534.7,0.7827]
[1757994316828,4.25532174,4534.8,4534.7,0.4959]
[1757994317037,4.25532174,4534.8,4534.5,0.4959]
[1757994317254,4.25532174,4534.8,4534.6,0.4959]
[1757994317456,4.25532174,4534.8,4534.5,0.4736]
[1757994317644,4.25532174,4534.8,4534.7,0.4959]
[1757994320282,4.41782174,4534.8,4534.5,0.4909]
[1757994320487,4.41782174,4534.8,4534.6,0.4909]
[1757994320640,4.25532174,4534.8,4534.6,0.4909]
[1757994321023,4.25532174,4534.8,4534.7,0.4909]
[1757994321170,4.25532174,4534.8,4534.7,0.7886]
[1757994322255,4.25532174,4534.8,4534.7,0.4909]
[1757994322441,4.25532174,4534.8,4534.4,0.5693]
[1757994322676,4.25532174,4534.8,4534.5,0.4909]
[1757994322882,4.25532174,4534.8,4534.4,0.5693]
[1757994323183,4.25532174,4534.8,4534.6,0.4909]
[1757994324288,0.1618,4534.7,4534.4,0.001]
[1757994324444,4.25332174,4534.5,4534.4,0.001]
[1757994324644,4.25332174,4534.5,4534.4,0.4919]
[1757994325045,4.25332174,4534.5,4534.4,1.2483]
[1757994331809,4.25332174,4534.5,4534.4,15.7483]
[1757994331962,4.25332174,4534.5,4534.4,15.2896]
[1757994332160,4.25332174,4534.5,4534.4,14.501]
[1757994332161,6.75403654,4534.5,4534.4,14.501]
[1757994332407,6.87808227,4534.5,4534.4,14.501]
[1757994332610,6.87808227,4534.5,4534.4,0.001]
[1757994333110,15.71616106,4534.5,4534.4,0.001]
[1757994333305,16.01964461,4534.5,4534.4,0.001]
[1757994333616,15.71616106,4534.5,4534.4,0.001]
[1757994333928,15.80459589,4534.5,4534.4,0.001]
[1757994334445,19.47759589,4534.5,4534.4,0.001]
[1757994335430,20.07385101,4534.5,4534.4,0.001]
[1757994335630,19.47759589,4534.5,4534.4,0.001]
[1757994336177,20.07275228,4534.5,4534.4,0.001]
[1757994336676,14.82913054,4534.5,4534.4,0.001]
[1757994336875,19.24425228,4534.5,4534.4,0.001]
[1757994337478,15.57125228,4534.5,4534.4,0.001]
[1757994337648,19.24425228,4534.5,4534.4,0.001]
[1757994338285,18.64909589,4534.5,4534.4,0.001]
[1757994339058,14.97609589,4534.5,4534.4,0.001]
[1757994339360,18.64909589,4534.5,4534.4,0.001]
[1757994340685,14.97609589,4534.5,4534.4,0.001]
[1757994340986,18.64909589,4534.5,4534.4,0.001]
[1757994341388,14.97609589,4534.5,4534.4,0.001]
[1757994341576,18.64909589,4534.5,4534.4,0.001]
[1757994341776,15.24725512,4534.5,4534.4,0.001]
[1757994342184,16.07445512,4534.5,4534.4,0.001]
[1757994342482,16.07545512,4534.5,4534.4,0.001]
[1757994343592,12.40145512,4534.5,4534.4,0.001]
[1757994343778,16.07389115,4534.5,4534.4,0.001]
[1757994343976,5.20536344,4534.4,4534.3,0.001]
[1757994344194,2.20541208,4534.3,4533.9,0.001]
[1757994344398,8.10480271,4533.5,4533.3,0.001]
[1757994344580,13.59863272,4533.5,4533.3,0.001]
[1757994344910,14.4920182,4533.5,4533.3,0.001]
[1757994345194,17.68307193,4533.5,4533.3,0.001]
[1757994345493,17.77152827,4533.5,4533.3,0.001]
[1757994346259,2.20584991,4533.4,4533.3,0.001]
[1757994346578,6.91310143,4533.4,4533.3,0.001]
[1757994346782,7.55449103,4533.4,4533.3,0.001]
[1757994346977,7.85779103,4533.4,4533.3,0.001]
[1757994347687,7.85759224,4533.4,4533.3,0.001]
[1757994348303,7.55410869,4533.4,4533.3,0.001]
[1757994348464,7.25080869,4533.4,4533.3,0.001]
[1757994348860,7.55410869,4533.4,4533.3,0.001]
[1757994350591,6.85920869,4533.4,4533.3,0.001]
[1757994352227,6.85879733,4533.4,4533.3,0.001]
[1757994352625,7.55369733,4533.4,4533.3,0.001]
[1757994353800,7.25039733,4533.4,4533.3,0.001]
[1757994354526,7.25016439,4533.4,4533.3,0.001]
[1757994354826,6.85856439,4533.4,4533.3,0.001]
[1757994355146,7.55346439,4533.4,4533.3,0.001]
[1757994355428,8.13166439,4533.4,4533.3,0.001]
[1757994355816,7.43676439,4533.4,4533.3,0.001]
[1757994357040,7.43678151,4533.4,4533.3,0.001]
[1757994357202,7.43680503,4533.4,4533.3,0.001]
[1757994357728,7.14140503,4533.4,4533.3,0.4885]
[1757994358030,10.81540503,4533.4,4533.3,1.209]
[1757994358617,10.81540503,4533.4,4533.3,0.4885]
[1757994358817,10.81540503,4533.4,4533.3,1.209]
[1757994360094,10.81540503,4533.4,4533.3,0.7802]
[1757994360420,10.81540503,4533.4,4533.3,1.209]
[1757994360825,10.27959854,4533.4,4533.3,1.209]
[1757994361722,10.81570374,4533.4,4533.3,1.209]
[1757994362451,10.57769854,4533.4,4533.3,0.001]
[1757994362639,10.70147026,4533.4,4533.3,0.001]
[1757994363138,10.27959854,4533.4,4533.3,0.7802]
[1757994363311,6.60559854,4533.4,4533.3,0.001]
[1757994363514,10.28159854,4533.4,4533.3,0.7802]
[1757994364035,10.28159854,4533.4,4533.3,1.209]
[1757994364533,6.60759854,4533.4,4533.3,1.209]
[1757994364832,10.28159854,4533.4,4533.3,1.209]
[1757994365020,6.60759854,4533.4,4533.3,1.209]
[1757994365227,10.28159854,4533.4,4533.3,1.209]
[1757994367139,10.57969854,4533.4,4533.3,0.001]
[1757994367537,11.17485493,4533.4,4533.3,0.001]
[1757994367749,11.71145717,4533.4,4533.3,0.001]
[1757994367949,11.71146788,4533.4,4533.3,0.001]
[1757994369349,12.01495143,4533.4,4533.3,0.001]
[1757994369649,11.41336788,4533.4,4533.3,0.001]
[1757994369855,11.41336788,4533.4,4533.3,0.4885]
[1757994370220,10.81866968,4533.4,4533.3,0.7802]
[1757994370553,10.81866968,4533.4,4533.3,1.209]
[1757994370751,1.93881977,4533.4,4533.3,0.7802]
[1757994371060,9.21207738,4533.4,4533.3,1.209]
[1757994371355,14.99947292,4533.4,4533.3,0.4885]
[1757994371553,14.99947292,4533.4,4533.3,1.209]
[1757994371855,15.14837292,4533.4,4533.3,0.001]
[1757994372151,15.99144185,4533.4,4533.3,0.001]
[1757994372349,16.11575863,4533.4,4533.3,0.001]
[1757994373127,16.40729347,4533.4,4533.3,0.001]
[1757994374723,15.81227508,4533.4,4533.3,0.001]
[1757994374951,16.91022954,4533.4,4533.3,0.001]
[1757994375152,17.30182954,4533.4,4533.3,0.001]
[1757994375530,16.91022954,4533.4,4533.3,0.001]
[1757994378759,16.9106374,4533.4,4533.3,0.001]
[1757994379733,16.45825385,4533.4,4533.3,0.7802]
[1757994379948,16.45825385,4533.4,4533.3,1.209]
[1757994380165,15.66378294,4533.4,4533.3,1.209]
[1757994381254,11.98978294,4533.4,4533.3,1.209]
[1757994381569,15.66378294,4533.4,4533.3,1.209]
[1757994381938,15.66378294,4533.4,4533.3,0.4885]
[1757994382137,15.66378294,4533.4,4533.3,0.001]
[1757994382138,16.76195385,4533.4,4533.3,0.001]
[1757994382772,13.08795385,4533.4,4533.3,0.001]
[1757994382964,16.76195385,4533.4,4533.3,0.001]
[1757994383639,7.67945114,4533.4,4533.3,0.7799]
[1757994383841,10.55927122,4533.4,4533.3,1.213]
[1757994384457,6.88527122,4533.4,4533.3,0.7799]
[1757994384739,10.55927122,4533.4,4533.3,1.213]
[1757994387275,10.55927122,4533.4,4533.3,0.4763]
[1757994387439,10.72197122,4533.4,4533.3,0.001]
[1757994388651,10.59795386,4533.4,4533.3,0.001]
[1757994388885,10.72215878,4533.4,4533.3,0.001]
[1757994389085,10.55945878,4533.4,4533.3,0.001]
[1757994390309,10.55946132,4533.4,4533.3,0.001]
[1757994391008,10.55946132,4533.4,4533.3,0.4763]
[1757994391310,10.55946132,4533.4,4533.3,0.001]
[1757994391311,10.72216132,4533.4,4533.3,0.001]
[1757994393626,10.71628404,4533.4,4533.3,0.001]
[1757994395140,9.89404466,4533.4,4533.3,1.213]
[1757994396135,6.22004466,4533.4,4533.3,1.213]
[1757994396306,9.89304466,4533.4,4533.3,1.213]
[1757994396504,9.79304466,4533.4,4533.3,1.213]
[1757994397911,6.12204466,4533.4,4533.3,1.213]
[1757994398226,7.58919475,4533.4,4533.3,1.213]
[1757994398614,9.79504466,4533.4,4533.3,1.213]